[Event "*** Titled Tuesday Blitz"]
[Site "Chess.com"]
[Date "2021.02.02"]
[Round "11"]
[White "bogcsab"]
[Black "Susik_Gaboyan"]
[Result "1/2-1/2"]
[WhiteElo "2182"]
[BlackElo "2300"]
[TimeControl "180+1"]
[EndTime "12:08:07 PST"]
[Termination "Game drawn by repetition"]

1. d4 {[%clk 0:03:00.9]} 1... Nf6 {[%clk 0:02:59.4]} 2. c4 {[%clk 0:03:00.1]}
2... g6 {[%clk 0:02:59.2]} 3. Nc3 {[%clk 0:02:59.8]} 3... d5 {[%clk 0:02:59.2]}
4. Nf3 {[%clk 0:02:59.2]} 4... Bg7 {[%clk 0:02:58.4]} 5. g3 {[%clk 0:02:58.6]}
5... O-O {[%clk 0:02:57.9]} 6. Bg2 {[%clk 0:02:58.8]} 6... c5 {[%clk 0:02:54.5]}
7. cxd5 {[%clk 0:02:56.3]} 7... Nxd5 {[%clk 0:02:52.8]} 8. O-O {[%clk
0:02:49.2]} 8... Nc6 {[%clk 0:02:50.3]} 9. Nxd5 {[%clk 0:02:39.5]} 9... Qxd5
{[%clk 0:02:49.6]} 10. dxc5 {[%clk 0:02:39.8]} 10... Qxc5 {[%clk 0:02:47.7]} 11.
Be3 {[%clk 0:02:25.9]} 11... Qb5 {[%clk 0:02:45.2]} 12. Qb3 {[%clk 0:01:58.9]}
12... Qxb3 {[%clk 0:02:41.4]} 13. axb3 {[%clk 0:01:58.8]} 13... Bxb2 {[%clk
0:02:42.3]} 14. Ra2 {[%clk 0:01:52]} 14... Bf6 {[%clk 0:02:41.8]} 15. Nd2 {[%clk
0:01:44.7]} 15... Nd4 {[%clk 0:02:31.4]} 16. Ne4 {[%clk 0:01:17.7]} 16... Bg7
{[%clk 0:02:28]} 17. Rd1 {[%clk 0:01:08]} 17... Nxb3 {[%clk 0:02:25.9]} 18. Rxa7
{[%clk 0:01:04.7]} 18... Rxa7 {[%clk 0:02:24.9]} 19. Bxa7 {[%clk 0:01:04.6]}
19... Na5 {[%clk 0:02:23.4]} 20. Nc5 {[%clk 0:01:00.8]} 20... Nc6 {[%clk
0:02:22.6]} 21. Bb6 {[%clk 0:00:56.3]} 21... Nd4 {[%clk 0:02:16.4]} 22. e3
{[%clk 0:00:53.3]} 22... Ne2+ {[%clk 0:02:14.1]} 23. Kf1 {[%clk 0:00:51.6]}
23... Nc3 {[%clk 0:02:15]} 24. Rc1 {[%clk 0:00:45.4]} 24... Na2 {[%clk
0:01:58.2]} 25. Rb1 {[%clk 0:00:36.3]} 25... Bf5 {[%clk 0:01:48.3]} 26. e4
{[%clk 0:00:35.6]} 26... Bc8 {[%clk 0:01:46.1]} 27. Ba5 {[%clk 0:00:28.3]} 27...
Nc3 {[%clk 0:01:35]} 28. Bxc3 {[%clk 0:00:25]} 28... Bxc3 {[%clk 0:01:35.9]} 29.
Nxb7 {[%clk 0:00:24.7]} 29... Be6 {[%clk 0:01:01.3]} 30. Nc5 {[%clk 0:00:24.6]}
30... Bc4+ {[%clk 0:00:59.9]} 31. Kg1 {[%clk 0:00:24.6]} 31... Bg7 {[%clk
0:01:00.6]} 32. Rc1 {[%clk 0:00:23.7]} 32... Bb5 {[%clk 0:00:59.7]} 33. Nb3
{[%clk 0:00:22.6]} 33... Rd8 {[%clk 0:00:54.6]} 34. Bf1 {[%clk 0:00:20.7]} 34...
Bxf1 {[%clk 0:00:49.7]} 35. Kxf1 {[%clk 0:00:20.8]} 35... h5 {[%clk 0:00:50.6]}
36. Re1 {[%clk 0:00:19.5]} 36... e6 {[%clk 0:00:51.1]} 37. Nc1 {[%clk
0:00:18.4]} 37... Rb8 {[%clk 0:00:50.4]} 38. Nd3 {[%clk 0:00:17.5]} 38... Rb3
{[%clk 0:00:50.3]} 39. Nf4 {[%clk 0:00:16.7]} 39... Rb2 {[%clk 0:00:48.4]} 40.
Re2 {[%clk 0:00:16.6]} 40... Rb1+ {[%clk 0:00:48.8]} 41. Kg2 {[%clk 0:00:16.7]}
41... Be5 {[%clk 0:00:46]} 42. Nh3 {[%clk 0:00:15.6]} 42... Bd4 {[%clk
0:00:39.7]} 43. Ng5 {[%clk 0:00:15.4]} 43... Kg7 {[%clk 0:00:38.3]} 44. Nf3
{[%clk 0:00:15.5]} 44... Bc3 {[%clk 0:00:32.7]} 45. Rc2 {[%clk 0:00:15.1]} 45...
Rb3 {[%clk 0:00:32.3]} 46. h4 {[%clk 0:00:14.2]} 46... Kf6 {[%clk 0:00:30.2]}
47. Ng5 {[%clk 0:00:13.8]} 47... Be5 {[%clk 0:00:26.1]} 48. f4 {[%clk
0:00:11.1]} 48... Bb8 {[%clk 0:00:14]} 49. Ra2 {[%clk 0:00:09.3]} 49... Rb7
{[%clk 0:00:09.5]} 50. Rc2 {[%clk 0:00:08.6]} 50... Rc7 {[%clk 0:00:08.6]} 51.
Rb2 {[%clk 0:00:08.5]} 51... Ba7 {[%clk 0:00:08.9]} 52. Rd2 {[%clk 0:00:07.5]}
52... Ke7 {[%clk 0:00:08.3]} 53. e5 {[%clk 0:00:06.5]} 53... Rd7 {[%clk
0:00:07.6]} 54. Ra2 {[%clk 0:00:06]} 54... Bd4 {[%clk 0:00:06.7]} 55. Ne4 {[%clk
0:00:06]} 55... Rb7 {[%clk 0:00:05.3]} 56. Nd6 {[%clk 0:00:05.4]} 56... Rb2+
{[%clk 0:00:05.7]} 57. Rxb2 {[%clk 0:00:05.2]} 57... Bxb2 {[%clk 0:00:06.6]} 58.
Kf3 {[%clk 0:00:05.5]} 58... Ba3 {[%clk 0:00:06.5]} 59. Ne4 {[%clk 0:00:06.1]}
59... Bb4 {[%clk 0:00:06.4]} 60. Nf6 {[%clk 0:00:06.1]} 60... Be1 {[%clk
0:00:05.9]} 61. Nh7 {[%clk 0:00:06.3]} 61... Bc3 {[%clk 0:00:05.5]} 62. Ng5
{[%clk 0:00:06.8]} 62... Ba1 {[%clk 0:00:06.2]} 63. Nh7 {[%clk 0:00:07.4]} 63...
Bb2 {[%clk 0:00:06.2]} 64. Ng5 {[%clk 0:00:08]} 64... Bc3 {[%clk 0:00:06.8]} 65.
Nh7 {[%clk 0:00:08.8]} 65... Ba1 {[%clk 0:00:07.3]} 66. Ng5 {[%clk 0:00:09.3]}
66... Bc3 {[%clk 0:00:07.9]} 67. Nh7 {[%clk 0:00:09.9]} 67... Ba1 {[%clk
0:00:08.1]} 68. Ng5 {[%clk 0:00:10.4]} 68... Bc3 {[%clk 0:00:08.8]} 1/2-1/2

[Event "*** Titled Tuesday Blitz"]
[Site "Chess.com"]
[Date "2021.02.02"]
[Round "11"]
[White "sergeikim"]
[Black "TeukkaSalama"]
[Result "1/2-1/2"]
[WhiteElo "2497"]
[BlackElo "2381"]
[TimeControl "180+1"]
[EndTime "12:08:08 PST"]
[Termination "Game drawn by stalemate"]

1. d4 {[%clk 0:03:00.9]} 1... d6 {[%clk 0:03:00.6]} 2. c4 {[%clk 0:03:00.8]}
2... e5 {[%clk 0:03:00.5]} 3. Nf3 {[%clk 0:02:59.9]} 3... Nd7 {[%clk 0:03:00.7]}
4. Nc3 {[%clk 0:02:58.8]} 4... Ngf6 {[%clk 0:03:01.4]} 5. e4 {[%clk 0:02:58.4]}
5... Be7 {[%clk 0:03:02.1]} 6. g3 {[%clk 0:02:57.2]} 6... O-O {[%clk 0:03:01.8]}
7. Bg2 {[%clk 0:02:57.1]} 7... c6 {[%clk 0:03:02.5]} 8. O-O {[%clk 0:02:53]}
8... a6 {[%clk 0:03:02.9]} 9. d5 {[%clk 0:02:52.4]} 9... cxd5 {[%clk 0:03:01.4]}
10. cxd5 {[%clk 0:02:51.2]} 10... b5 {[%clk 0:03:01.7]} 11. a3 {[%clk
0:02:46.4]} 11... Nb6 {[%clk 0:03:02.2]} 12. Nh4 {[%clk 0:02:42.4]} 12... Bd7
{[%clk 0:02:52.8]} 13. b3 {[%clk 0:02:30.9]} 13... Rc8 {[%clk 0:02:51.8]} 14.
Bd2 {[%clk 0:02:28.2]} 14... Rc7 {[%clk 0:02:45.4]} 15. Qe2 {[%clk 0:02:18]}
15... Qb8 {[%clk 0:02:44]} 16. Nd1 {[%clk 0:01:54.1]} 16... Rfc8 {[%clk
0:02:42.4]} 17. Ne3 {[%clk 0:01:53.4]} 17... g6 {[%clk 0:02:41.4]} 18. h3 {[%clk
0:01:48.6]} 18... Bf8 {[%clk 0:02:29.3]} 19. Ba5 {[%clk 0:01:40]} 19... Bh6
{[%clk 0:02:20.2]} 20. Kh2 {[%clk 0:01:36.2]} 20... Be8 {[%clk 0:01:57.4]} 21.
Ng4 {[%clk 0:01:24.7]} 21... Nxg4+ {[%clk 0:01:49.5]} 22. Qxg4 {[%clk
0:01:24.2]} 22... Bd7 {[%clk 0:01:41.1]} 23. Nf5 {[%clk 0:01:14.8]} 23... Bf8
{[%clk 0:01:16.2]} 24. Qg5 {[%clk 0:01:10.2]} 24... Rc2 {[%clk 0:00:59.5]} 25.
Ne7+ {[%clk 0:01:00.1]} 25... Bxe7 {[%clk 0:00:58.8]} 26. Qxe7 {[%clk
0:01:00.1]} 26... Be8 {[%clk 0:00:41.2]} 27. Qf6 {[%clk 0:00:55]} 27... Nd7
{[%clk 0:00:38]} 28. Qe7 {[%clk 0:00:51]} 28... Nc5 {[%clk 0:00:33.2]} 29. Bb4
{[%clk 0:00:48.9]} 29... Qc7 {[%clk 0:00:23.9]} 30. Qf6 {[%clk 0:00:46.6]} 30...
a5 {[%clk 0:00:22.6]} 31. Bxc5 {[%clk 0:00:40.8]} 31... Qxc5 {[%clk 0:00:23.5]}
32. h4 {[%clk 0:00:38.2]} 32... Bd7 {[%clk 0:00:19.7]} 33. h5 {[%clk 0:00:37.4]}
33... gxh5 {[%clk 0:00:18.7]} 34. Qg5+ {[%clk 0:00:35.9]} 34... Kf8 {[%clk
0:00:19.3]} 35. Qxh5 {[%clk 0:00:35.6]} 35... Rxf2 {[%clk 0:00:18.6]} 36. Rxf2
{[%clk 0:00:32.9]} 36... Qxf2 {[%clk 0:00:18.7]} 37. Rf1 {[%clk 0:00:33.2]}
37... Rc2 {[%clk 0:00:13.8]} 38. Rxf2 {[%clk 0:00:32.4]} 38... Rxf2 {[%clk
0:00:14.7]} 39. Qxh7 {[%clk 0:00:31.7]} 39... Ra2 {[%clk 0:00:10.3]} 40. Qh8+
{[%clk 0:00:30.1]} 40... Ke7 {[%clk 0:00:10.3]} 41. b4 {[%clk 0:00:29.4]} 41...
axb4 {[%clk 0:00:10]} 42. axb4 {[%clk 0:00:28.9]} 42... Rb2 {[%clk 0:00:10.6]}
43. Qb8 {[%clk 0:00:27.2]} 43... Rxb4 {[%clk 0:00:09.2]} 44. Qb7 {[%clk
0:00:26.9]} 44... Rb2 {[%clk 0:00:08.6]} 45. Kg1 {[%clk 0:00:26.9]} 45... Ke8
{[%clk 0:00:05.7]} 46. Qb8+ {[%clk 0:00:24.9]} 46... Ke7 {[%clk 0:00:06.2]} 47.
Bf3 {[%clk 0:00:23.3]} 47... b4 {[%clk 0:00:05.4]} 48. Qc7 {[%clk 0:00:20.8]}
48... Rb3 {[%clk 0:00:02.6]} 49. Kf2 {[%clk 0:00:19]} 49... Rb2+ {[%clk
0:00:02.6]} 50. Ke1 {[%clk 0:00:19.1]} 50... Rb3 {[%clk 0:00:02.9]} 51. Bg4
{[%clk 0:00:18.5]} 51... Re3+ {[%clk 0:00:02.5]} 52. Kd2 {[%clk 0:00:17.8]}
52... Rxe4 {[%clk 0:00:02.6]} 53. Qxd7+ {[%clk 0:00:17.7]} 53... Kf6 {[%clk
0:00:03.1]} 54. Qxd6+ {[%clk 0:00:17.8]} 54... Kg5 {[%clk 0:00:03.7]} 55. Bf3
{[%clk 0:00:17.9]} 55... Rd4+ {[%clk 0:00:04]} 56. Ke3 {[%clk 0:00:17.1]} 56...
f6 {[%clk 0:00:02.8]} 57. Qe6 {[%clk 0:00:15.8]} 57... Rc4 {[%clk 0:00:02]} 58.
d6 {[%clk 0:00:15.6]} 58... Rc3+ {[%clk 0:00:02.9]} 59. Ke2 {[%clk 0:00:14.7]}
59... b3 {[%clk 0:00:03.5]} 60. Be4 {[%clk 0:00:14.8]} 60... b2 {[%clk
0:00:02.4]} 61. Qf5+ {[%clk 0:00:14.3]} 61... Kh6 {[%clk 0:00:02.1]} 62. Qxf6+
{[%clk 0:00:14.1]} 62... Kh5 {[%clk 0:00:01.1]} 63. Qxe5+ {[%clk 0:00:14.1]}
63... Kh6 {[%clk 0:00:01.3]} 64. Qxc3 {[%clk 0:00:14]} 64... b1=Q {[%clk
0:00:01.8]} 65. Bxb1 {[%clk 0:00:14.4]} 65... Kh5 {[%clk 0:00:02.2]} 66. Qe5+
{[%clk 0:00:14.5]} 66... Kh6 {[%clk 0:00:03.1]} 67. d7 {[%clk 0:00:14.5]}
1/2-1/2

[Event "*** Titled Tuesday Blitz"]
[Site "Chess.com"]
[Date "2021.02.02"]
[Round "11"]
[White "Rsnr"]
[Black "Legendinunknown"]
[Result "1/2-1/2"]
[WhiteElo "2767"]
[BlackElo "2606"]
[TimeControl "180+1"]
[EndTime "12:08:15 PST"]
[Termination "Game drawn - insufficient material"]

1. d4 {[%clk 0:03:00.9]} 1... d5 {[%clk 0:02:56.7]} 2. c4 {[%clk 0:03:00.3]}
2... c6 {[%clk 0:02:55.5]} 3. Nf3 {[%clk 0:02:53.4]} 3... Nf6 {[%clk 0:02:53.3]}
4. Qc2 {[%clk 0:02:53.8]} 4... g6 {[%clk 0:02:49.9]} 5. Bf4 {[%clk 0:02:53.6]}
5... Bg7 {[%clk 0:02:47.5]} 6. e3 {[%clk 0:02:54.1]} 6... O-O {[%clk 0:02:47.1]}
7. Nc3 {[%clk 0:02:54.4]} 7... a6 {[%clk 0:02:44.8]} 8. c5 {[%clk 0:02:51.6]}
8... Bf5 {[%clk 0:02:43.9]} 9. Qb3 {[%clk 0:02:46.3]} 9... Qc8 {[%clk
0:02:39.3]} 10. h3 {[%clk 0:02:46.7]} 10... Nbd7 {[%clk 0:02:38]} 11. Be2 {[%clk
0:02:46.2]} 11... Ne4 {[%clk 0:02:31.9]} 12. O-O {[%clk 0:02:30.7]} 12... Nxc3
{[%clk 0:02:26.3]} 13. Qxc3 {[%clk 0:02:22.9]} 13... f6 {[%clk 0:02:22.4]} 14.
b4 {[%clk 0:02:16]} 14... Qe8 {[%clk 0:02:14]} 15. a4 {[%clk 0:02:14.5]} 15...
e5 {[%clk 0:02:13]} 16. Bg3 {[%clk 0:02:14.8]} 16... Be4 {[%clk 0:02:07.6]} 17.
Rfe1 {[%clk 0:02:14.6]} 17... Bxf3 {[%clk 0:02:06.5]} 18. Bxf3 {[%clk
0:02:14.4]} 18... f5 {[%clk 0:02:07]} 19. b5 {[%clk 0:02:00.1]} 19... Qe6 {[%clk
0:02:02.2]} 20. Rab1 {[%clk 0:01:41.3]} 20... axb5 {[%clk 0:01:53.5]} 21. axb5
{[%clk 0:01:42.2]} 21... Qf6 {[%clk 0:01:52.7]} 22. dxe5 {[%clk 0:01:26.5]}
22... Nxe5 {[%clk 0:01:51.5]} 23. Bxe5 {[%clk 0:01:27]} 23... Qxe5 {[%clk
0:01:52.4]} 24. Qxe5 {[%clk 0:01:27.9]} 24... Bxe5 {[%clk 0:01:52.7]} 25. bxc6
{[%clk 0:01:28.8]} 25... bxc6 {[%clk 0:01:53.2]} 26. Rb6 {[%clk 0:01:29.5]}
26... Rfc8 {[%clk 0:01:52.4]} 27. Rxc6 {[%clk 0:01:29.7]} 27... Rxc6 {[%clk
0:01:47.6]} 28. Bxd5+ {[%clk 0:01:30]} 28... Kg7 {[%clk 0:01:47.8]} 29. Bxc6
{[%clk 0:01:30.6]} 29... Rc8 {[%clk 0:01:48.4]} 30. Ba4 {[%clk 0:01:04.5]} 30...
Rxc5 {[%clk 0:01:46.5]} 31. Rd1 {[%clk 0:01:04.9]} 31... Ra5 {[%clk 0:01:42.4]}
32. Bb3 {[%clk 0:00:50.4]} 32... Ra3 {[%clk 0:01:36.9]} 33. Rd7+ {[%clk
0:00:45]} 33... Kh6 {[%clk 0:01:28.3]} 34. Bd1 {[%clk 0:00:43.3]} 34... Ra6
{[%clk 0:01:20.8]} 35. Be2 {[%clk 0:00:38.9]} 35... Ra1+ {[%clk 0:01:08.2]} 36.
Bf1 {[%clk 0:00:39.3]} 36... f4 {[%clk 0:00:59.4]} 37. Re7 {[%clk 0:00:20.3]}
37... Ra5 {[%clk 0:00:55.3]} 38. exf4 {[%clk 0:00:17.2]} 38... Bxf4 {[%clk
0:00:56.2]} 39. g3 {[%clk 0:00:17.7]} 39... Bg5 {[%clk 0:00:54.8]} 40. Rb7
{[%clk 0:00:18]} 40... Bf6 {[%clk 0:00:52.4]} 41. Kg2 {[%clk 0:00:18.1]} 41...
Re5 {[%clk 0:00:50.9]} 42. Bd3 {[%clk 0:00:17.3]} 42... Re7 {[%clk 0:00:50.6]}
43. Rb6 {[%clk 0:00:17.6]} 43... Kg7 {[%clk 0:00:49.8]} 44. h4 {[%clk
0:00:18.1]} 44... Rd7 {[%clk 0:00:48.8]} 45. Be4 {[%clk 0:00:17.9]} 45... Re7
{[%clk 0:00:48.9]} 46. Kf3 {[%clk 0:00:17.8]} 46... Rf7 {[%clk 0:00:46.3]} 47.
Ke3 {[%clk 0:00:13.7]} 47... Be7 {[%clk 0:00:42.2]} 48. Rc6 {[%clk 0:00:12.7]}
48... Bf6 {[%clk 0:00:37.9]} 49. f4 {[%clk 0:00:12.4]} 49... Re7 {[%clk
0:00:37.1]} 50. Kf3 {[%clk 0:00:12.4]} 50... Ra7 {[%clk 0:00:34.7]} 51. Kg4
{[%clk 0:00:08.4]} 51... h5+ {[%clk 0:00:26.6]} 52. Kf3 {[%clk 0:00:08.6]} 52...
Ra3+ {[%clk 0:00:26]} 53. Kg2 {[%clk 0:00:09.3]} 53... Ra2+ {[%clk 0:00:25.1]}
54. Kh3 {[%clk 0:00:09.3]} 54... Ra7 {[%clk 0:00:24.9]} 55. Bd3 {[%clk
0:00:06.8]} 55... Rd7 {[%clk 0:00:24.8]} 56. Bc2 {[%clk 0:00:05.9]} 56... Re7
{[%clk 0:00:24.7]} 57. Kg2 {[%clk 0:00:06]} 57... Rd7 {[%clk 0:00:24.2]} 58. Kf3
{[%clk 0:00:06.2]} 58... Re7 {[%clk 0:00:24.2]} 59. Bd3 {[%clk 0:00:06.3]} 59...
Ra7 {[%clk 0:00:23.9]} 60. Rc5 {[%clk 0:00:05.1]} 60... Rd7 {[%clk 0:00:23.3]}
61. Be4 {[%clk 0:00:05.1]} 61... Ra7 {[%clk 0:00:22.6]} 62. Rd5 {[%clk
0:00:05.6]} 62... Ra3+ {[%clk 0:00:22.1]} 63. Bd3 {[%clk 0:00:06.2]} 63... Ra7
{[%clk 0:00:21]} 64. f5 {[%clk 0:00:06]} 64... gxf5 {[%clk 0:00:19.2]} 65. Rxf5
{[%clk 0:00:06.9]} 65... Rd7 {[%clk 0:00:19]} 66. Ke2 {[%clk 0:00:06.5]} 66...
Re7+ {[%clk 0:00:18.9]} 67. Kd2 {[%clk 0:00:06.9]} 67... Re5 {[%clk 0:00:19.8]}
68. Rf3 {[%clk 0:00:05.9]} 68... Rc5 {[%clk 0:00:19.7]} 69. Bf5 {[%clk
0:00:05.4]} 69... Be5 {[%clk 0:00:19.2]} 70. Be4 {[%clk 0:00:05]} 70... Rc4
{[%clk 0:00:18.9]} 71. Bd3 {[%clk 0:00:05]} 71... Rg4 {[%clk 0:00:18.4]} 72. Be2
{[%clk 0:00:04.5]} 72... Rxg3 {[%clk 0:00:18.2]} 73. Rxg3+ {[%clk 0:00:04.7]}
73... Bxg3 {[%clk 0:00:19.1]} 74. Bxh5 {[%clk 0:00:05.5]} 74... Bxh4 {[%clk
0:00:20]} 1/2-1/2

[Event "*** Titled Tuesday Blitz"]
[Site "Chess.com"]
[Date "2021.02.02"]
[Round "11"]
[White "Tsyhanchuk_Stanislav"]
[Black "Vnebo"]
[Result "1/2-1/2"]
[WhiteElo "2493"]
[BlackElo "2732"]
[TimeControl "180+1"]
[EndTime "12:08:24 PST"]
[Termination "Game drawn - insufficient material"]

1. e4 {[%clk 0:03:00.9]} 1... d5 {[%clk 0:02:57.8]} 2. exd5 {[%clk 0:03:00.5]}
2... Qxd5 {[%clk 0:02:58.7]} 3. Nc3 {[%clk 0:03:00.7]} 3... Qd6 {[%clk
0:02:58.9]} 4. d4 {[%clk 0:03:01.3]} 4... Nf6 {[%clk 0:02:59.5]} 5. Bc4 {[%clk
0:03:01.9]} 5... a6 {[%clk 0:02:59.2]} 6. Nge2 {[%clk 0:03:02.5]} 6... b5 {[%clk
0:02:58.7]} 7. Bf4 {[%clk 0:03:03.1]} 7... Qd8 {[%clk 0:02:46.9]} 8. Bb3 {[%clk
0:03:02.9]} 8... Bb7 {[%clk 0:02:46.7]} 9. O-O {[%clk 0:03:03]} 9... e6 {[%clk
0:02:46.7]} 10. Be5 {[%clk 0:02:43.3]} 10... c5 {[%clk 0:02:32]} 11. dxc5 {[%clk
0:02:35.1]} 11... Qxd1 {[%clk 0:02:29.7]} 12. Raxd1 {[%clk 0:02:36]} 12... Nbd7
{[%clk 0:02:28.7]} 13. Bxf6 {[%clk 0:02:06.6]} 13... gxf6 {[%clk 0:02:23.5]} 14.
c6 {[%clk 0:02:05.9]} 14... Bxc6 {[%clk 0:02:22.8]} 15. Nd4 {[%clk 0:02:06.8]}
15... Bb7 {[%clk 0:02:19.8]} 16. Rfe1 {[%clk 0:02:01.1]} 16... O-O-O {[%clk
0:02:03]} 17. a4 {[%clk 0:01:37.1]} 17... b4 {[%clk 0:02:01.6]} 18. Ne4 {[%clk
0:01:36.7]} 18... Nc5 {[%clk 0:01:28.3]} 19. Nxc5 {[%clk 0:00:47.6]} 19... Bxc5
{[%clk 0:01:29.2]} 20. Ne2 {[%clk 0:00:48.2]} 20... Rhg8 {[%clk 0:01:24]} 21.
Ng3 {[%clk 0:00:48.5]} 21... f5 {[%clk 0:01:12.4]} 22. Kf1 {[%clk 0:00:36.4]}
22... Rxd1 {[%clk 0:01:02.7]} 23. Rxd1 {[%clk 0:00:35.1]} 23... f4 {[%clk
0:01:02.9]} 24. Nh5 {[%clk 0:00:33.7]} 24... Rxg2 {[%clk 0:00:53.9]} 25. Rd2
{[%clk 0:00:15.3]} 25... Rxh2 {[%clk 0:00:19.8]} 26. Nxf4 {[%clk 0:00:14.9]}
26... Bf3 {[%clk 0:00:19.9]} 27. Ne2 {[%clk 0:00:07.1]} 27... Rxf2+ {[%clk
0:00:19.8]} 28. Ke1 {[%clk 0:00:07.1]} 28... Rh2 {[%clk 0:00:17.3]} 29. Ng3
{[%clk 0:00:06.7]} 29... Rh3 {[%clk 0:00:14.7]} 30. Nf1 {[%clk 0:00:06.6]} 30...
h5 {[%clk 0:00:12.4]} 31. Bc4 {[%clk 0:00:07.1]} 31... a5 {[%clk 0:00:11.7]} 32.
b3 {[%clk 0:00:07.2]} 32... Rh1 {[%clk 0:00:09.5]} 33. Ba6+ {[%clk 0:00:05.4]}
33... Kc7 {[%clk 0:00:09.1]} 34. Bb5 {[%clk 0:00:06.3]} 34... Bc6 {[%clk
0:00:06.2]} 35. Bxc6 {[%clk 0:00:06.8]} 35... Kxc6 {[%clk 0:00:06.9]} 36. Rg2
{[%clk 0:00:07.5]} 36... h4 {[%clk 0:00:06.4]} 37. Rg7 {[%clk 0:00:07.9]} 37...
f5 {[%clk 0:00:06.8]} 38. Ke2 {[%clk 0:00:07.8]} 38... h3 {[%clk 0:00:05.3]} 39.
Rh7 {[%clk 0:00:07.9]} 39... Bd6 {[%clk 0:00:05]} 40. Kf2 {[%clk 0:00:06.2]}
40... Bc5+ {[%clk 0:00:04]} 41. Ke2 {[%clk 0:00:06.6]} 41... Bd6 {[%clk
0:00:04.5]} 42. Kf2 {[%clk 0:00:05.7]} 42... h2 {[%clk 0:00:05.1]} 43. Rh4
{[%clk 0:00:01.5]} 43... Kd5 {[%clk 0:00:05.4]} 44. Kg2 {[%clk 0:00:01.3]} 44...
Rg1+ {[%clk 0:00:04.5]} 45. Kf2 {[%clk 0:00:02.1]} 45... Rg4 {[%clk 0:00:02.8]}
46. Ne3+ {[%clk 0:00:03]} 46... Ke5 {[%clk 0:00:02.5]} 47. Nxg4+ {[%clk
0:00:03.6]} 47... fxg4 {[%clk 0:00:03.4]} 48. Rxh2 {[%clk 0:00:03.7]} 48... Kf5
{[%clk 0:00:03.2]} 49. Rh8 {[%clk 0:00:02.7]} 49... Kf4 {[%clk 0:00:03.4]} 50.
Rh7 {[%clk 0:00:02]} 50... g3+ {[%clk 0:00:04.3]} 51. Ke2 {[%clk 0:00:02.3]}
51... Ke4 {[%clk 0:00:04.1]} 52. Rg7 {[%clk 0:00:02.7]} 52... Be5 {[%clk
0:00:04.7]} 53. Rg4+ {[%clk 0:00:03.2]} 53... Bf4 {[%clk 0:00:04.3]} 54. Rg6
{[%clk 0:00:03.7]} 54... Kd4 {[%clk 0:00:03.9]} 55. Rg4 {[%clk 0:00:03.6]} 55...
e5 {[%clk 0:00:03.3]} 56. Rg8 {[%clk 0:00:04.1]} 56... Kc3 {[%clk 0:00:04.2]}
57. Rc8+ {[%clk 0:00:04.7]} 57... Kb2 {[%clk 0:00:04.7]} 58. Kf3 {[%clk
0:00:05.1]} 58... Kb1 {[%clk 0:00:04.2]} 59. Rc5 {[%clk 0:00:04.5]} 59... Kb2
{[%clk 0:00:03.2]} 60. Rc4 {[%clk 0:00:04.1]} 60... Bd2 {[%clk 0:00:03.1]} 61.
Kg2 {[%clk 0:00:02.9]} 61... Bc3 {[%clk 0:00:03.7]} 62. Rc5 {[%clk 0:00:02.7]}
62... Kxc2 {[%clk 0:00:04.1]} 63. Rxa5 {[%clk 0:00:03.5]} 63... Kxb3 {[%clk
0:00:05]} 64. Ra8 {[%clk 0:00:03.4]} 64... Kc2 {[%clk 0:00:03.2]} 65. a5 {[%clk
0:00:03.4]} 65... b3 {[%clk 0:00:03.8]} 66. a6 {[%clk 0:00:03.7]} 66... b2
{[%clk 0:00:04.4]} 67. Rb8 {[%clk 0:00:04.1]} 67... Bd4 {[%clk 0:00:04.8]} 68.
Kxg3 {[%clk 0:00:04.5]} 68... b1=Q {[%clk 0:00:04.5]} 69. Rxb1 {[%clk
0:00:02.9]} 69... Kxb1 {[%clk 0:00:05.4]} 70. Kf3 {[%clk 0:00:02.8]} 70... Kc2
{[%clk 0:00:05.8]} 71. Ke4 {[%clk 0:00:03.4]} 71... Kc3 {[%clk 0:00:06.2]} 72.
a7 {[%clk 0:00:04]} 72... Bxa7 {[%clk 0:00:06.3]} 73. Kxe5 {[%clk 0:00:04.9]}
1/2-1/2